[Event "16th Serbian-ch Women 2022"]
[Site "Bajina Basta"]
[Date "2022.12.07"]
[Round "2.3"]
[White "Manakova, Maria"]
[Black "Bojicic, Andjela"]
[Result "1-0"]
[ECO "B07"]
[WhiteElo "2160"]
[BlackElo "2117"]
[Annotator "TA"]
[PlyCount "144"]
[EventDate "2022.12.06"]
[EventType "tourn"]
[EventCountry "SRB"]
[SourceTitle "playchess.com"]
[Source "ChessBase"]
[SourceQuality "1"]
[TimeControl "40/5400+30:1800+30"]

{[%evp 10,144,49,49,63,47,52,64,71,71,78,64,110,126,96,-9,-10,-6,0,-56,-39,-34,77,60,93,74,208,172,269,251,297,260,290,275,273,298,347,354,342,347,370,316,322,322,300,221,204,197,216,88,87,88,82,0,61,-17,50,-100,239,154,345,332,495,452,574,349,347,339,325,219,208,95,96,94,96,84,99,99,99,99,84,91,94,32,43,32,67,35,83,85,212,212,212,212,212,195,195,195,195,195,210,72,72,72,72,72,330,91,294,294,294,294,294,294,1340,8,0,0,330,181,253,0,330,330,330,330,330,330,322,322,322,233,29980,29981,29997,29987,29989]} 1. e4 {[%emt 0:01:28]} g6 {[%emt 0:00:04]} 2. d4 {[%emt 0:00:05]} Bg7 {[%emt 0:00:04]} 3. Nc3 {[%emt 0:00:06]} d6 {[%emt 0:00:05]} 4. Be3 {[%emt 0:00:20]} Nf6 {[%emt 0:00:17]} 5. Qd2 {[%emt 0:00:26]} O-O {[%emt 0:00:56]} 6. f3 {[%emt 0:01:14]} h5 {[%emt 0:01:10] B07: Pirc Defence: Miscellaneous Systems.} 7. Nge2 {[%emt 0:00:46]} c6 {[%emt 0:00:49]} 8. a4 {[%emt 0:00:30]} Qc7 {[%emt 0:04:29] [#] White is slightly better.} 9. h3 $146 {[%emt 0:01:00]} ({Predecessor:} 9. Bh6 Kh7 10. Bxg7 Kxg7 11. Nc1 e5 12. Bc4 Nbd7 13. N1e2 d5 14. exd5 Nb6 15. Bb3 Nbxd5 16. Nxd5 Nxd5 17. Bxd5 cxd5 18. dxe5 Qxe5 {½-½ (29) Antal,L (2179)-Monori,Z (2113) Budapest 2012}) 9... e5 {[%emt 0:05:15]} 10. g4 {[%emt 0:05:29]} Nbd7 {[%emt 0:09:34]} (10... Qa5 $1 $14) 11. O-O-O $16 {[%emt 0:04:42]} a6 {[%emt 0:11:21]} 12. gxh5 {[%emt 0:05:22]} (12. f4 $16) 12... Nxh5 $11 {[%emt 0:02:13]} 13. f4 {[%emt 0:00:21]} b5 {[%emt 0:11:39]} 14. dxe5 {[%emt 0:09:22]} (14. Rg1 $1 $11) 14... dxe5 $15 {[%emt 0:03:21]} 15. f5 {[%emt 0:00:47]} b4 {[%emt 0:16:35]} (15... gxf5 $1 $15 {stays ahead.} 16. exf5 Ndf6) 16. Nb1 $16 {[%emt 0:07:27]} b3 {[%emt 0:04:15]} 17. cxb3 {[%emt 0:08:33]} (17. fxg6 {with more complications.} Ndf6 18. Nec3 Be6 19. Na3) 17... Qb7 {[%emt 0:04:16]} (17... gxf5 $16 18. exf5 Ndf6) 18. Qc2 {[%emt 0:02:17]} Rb8 {[%emt 0:06:26]} (18... Ndf6 $142) 19. Nd2 $18 {[%emt 0:00:39]} Kh7 {[%emt 0:00:34]} 20. Bg2 {[%emt 0:06:37]} Ndf6 {[%emt 0:02:45]} 21. Bf3 {[%emt 0:03:29]} Rd8 {[%emt 0:06:10]} 22. Rhg1 {[%emt 0:13:15] Against c5} a5 {[%emt 0:03:52]} 23. Rg2 {[%emt 0:05:53]} Bd7 {[%emt 0:01:55]} 24. Bg5 {[%emt 0:05:45]} Rdc8 {[%emt 0:01:20]} 25. Bxh5 {[%emt 0:01:45]} Nxh5 {[%emt 0:00:17]} 26. Nc4 {[%emt 0:00:21]} Rc7 {[%emt 0:02:49]} 27. Nxa5 {[%emt 0:08:15] Pair of Knights!} Qb6 {[%emt 0:00:23]} 28. Bd2 {[%emt 0:02:02]} c5 {[%emt 0:00:37]} 29. Nc4 {[%emt 0:05:15]} (29. Kb1 $18) 29... Qxb3 $16 {[%emt 0:00:08]} 30. Qxb3 {[%emt 0:00:46]} Rxb3 {[%emt 0:00:05]} 31. Ba5 {[%emt 0:00:40]} ({Better is} 31. Nc3 $16) 31... Rcb7 {[%emt 0:00:32]} (31... Ra7 $11) 32. Bc3 {[%emt 0:00:27]} (32. Nd6 $14) 32... Ra7 {[%emt 0:01:31]} (32... Bxa4 $11 33. fxg6+ fxg6) 33. Nxe5 {[%emt 0:00:37] [#]} (33. Rd6 $14) 33... Bxe5 $4 {[%emt 0:00:27][%mdl 8192]} (33... Rxc3+ $1 $17 34. Nxc3 Bxe5) 34. Bxe5 {[%emt 0:00:30]} Bxa4 $2 {[%emt 0:00:23]} (34... gxf5 $16 35. Bc3 (35. Rg5 Rxh3 36. Bb8 Rb7 $14) 35... Bxa4) 35. Rd8 {[%emt 0:00:16][%csl Ge5][%cal Rd8h8]} Ng7 {[%emt 0:00:45]} (35... f6 $142) 36. Nf4 $18 {[%emt 0:00:39]} Rd7 {[%emt 0:00:35]} 37. Rxd7 {[%emt 0:00:28]} Bxd7 {[%emt 0:00:03]} 38. fxg6+ {[%emt 0:00:30]} fxg6 {[%emt 0:00:08]} 39. Nxg6 {[%emt 0:00:29]} Bxh3 {[%emt 0:01:03]} 40. Nf8+ {[%emt 0:00:52]} (40. Rg1 $1 $18 {and the rest is easy. Black must now prevent Nf8+.} Ne6 41. Bc3) 40... Kg8 $16 {[%emt 0:00:14]} 41. Rxg7+ {[%emt 0:05:36]} Kxf8 {[%emt 0:00:06][%mdl 4096] Endgame KRB-KRB} 42. Rc7 {[%emt 0:00:40]} Rb4 {[%emt 0:09:05]} 43. Bd6+ {[%emt 0:00:53]} (43. Rxc5 $6 Ke7 $11) 43... Ke8 {[%emt 0:00:22]} 44. e5 {[%emt 0:00:31]} (44. Rxc5 $6 Rxe4 45. Rc7 Kd8 $11) 44... Rc4+ {[%emt 0:04:22]} 45. Kd2 {[%emt 0:00:31] White is much more active.} Kd8 {[%emt 0:05:08]} 46. Ra7 {[%emt 0:15:58]} (46. Rxc5 $16 Rxc5 47. Bxc5) 46... Bf5 {[%emt 0:04:28]} 47. Rf7 {[%emt 0:00:53]} Bg6 {[%emt 0:03:10]} 48. Rf6 {[%emt 0:00:55]} Be8 {[%emt 0:02:02]} (48... Bb1 $14) 49. b3 {[%emt 0:00:21]} Rb4 {[%emt 0:03:40]} (49... Re4 $16 {might work better.}) 50. Kc3 $18 {[%emt 0:00:17]} ({Weaker is} 50. Bxc5 Rxb3 51. e6 Kc7 $11) 50... Re4 {[%emt 0:01:15]} 51. e6 {[%emt 0:01:17]} (51. Bxc5 Rxe5 52. Kc4 Rh5 $11) 51... Re3+ {[%emt 0:00:09]} 52. Kb2 {[%emt 0:01:13]} Re2+ {[%emt 0:01:17]} 53. Ka3 {[%emt 0:00:51]} Rc2 {[%emt 0:00:21]} 54. Rf4 {[%emt 0:03:24] Inhibits c4.} Bc6 {[%emt 0:01:23]} 55. Rf5 {[%emt 0:01:46]} (55. Rh4 $18 {has better winning chances.}) 55... c4 $16 {[%emt 0:00:47]} 56. b4 {[%emt 0:00:25] Strongly threatening b5.} (56. e7+ {seems wilder.} Kd7 57. Bb4 cxb3 58. Rf8) 56... Rc3+ {[%emt 0:00:47] [#]} 57. Kb2 $1 {[%emt 0:00:22]} Rd3 $2 {[%emt 0:00:38][%mdl 8192]} (57... Rb3+ $16 {keeps fighting.} 58. Ka2 Re3) 58. Rf8+ {[%emt 0:01:29]} Be8 {[%emt 0:00:04]} 59. Bc5 {[%emt 0:00:13]} Rh3 {[%emt 0:00:56]} 60. Kc2 {[%emt 0:00:50]} Rb3 {[%emt 0:00:31]} 61. Rh8 {[%emt 0:00:45] Threatens to win with Bf2.} Rd3 $2 {[%emt 0:00:25]} (61... Rg3 62. Rf8 Rd3) 62. Rh4 $2 {[%emt 0:01:15]} (62. Bf2 $18 {White threatens Bh4+ and mate.} Ke7 63. Bh4+ Kxe6 64. Rxe8+ Kf5 65. Rc8) 62... Ba4+ $11 {[%emt 0:00:26]} 63. Kb2 {[%emt 0:00:40]} Bb5 $2 {[%emt 0:00:41][%mdl 8192]} (63... c3+ $11 {and Black has nothing to worry.} 64. Ka2 (64. Ka3 $2 c2+ 65. Kb2 Rb3+ 66. Kxc2 Rxb4+ 67. Kd2 Rxh4 $19) 64... c2 65. e7+ (65. Kb2 $2 Rb3+ 66. Kxc2 Rxb4+ 67. Kc3 Rxh4 $19) 65... Kd7) 64. Rh8+ {[%emt 0:00:16]} (64. e7+ $142 Kc7 {[#]} 65. Rxc4 $3 {[%mdl 512]}) 64... Be8 {[%emt 0:00:03]} (64... Kc7 $142 65. Rh7+ Kc8) 65. Rh4 {[%emt 0:00:13]} Bb5 $1 {[%emt 0:00:13]} 66. e7+ {[%emt 0:00:10]} Kc7 {[%emt 0:01:14] [#]} 67. Rxc4 $3 {[%emt 0:00:34][%mdl 512]} Rd2+ {[%emt 0:00:27]} (67... Rd5 68. Rf4) 68. Kc3 {[%emt 0:00:37]} Re2 {[%emt 0:00:30]} 69. Rh4 {[%emt 0:02:20]} Re6 {[%emt 0:00:33]} 70. Rh5 {[%emt 0:00:00]} Ba6 $2 {[%emt 0:00:28] [#]} (70... Bc6 $18 71. Kc4 Re1) 71. Rh6 $3 {[%emt 0:01:00][%mdl 512]} Kc6 {[%emt 0:01:04]} (71... Rxe7 72. Bxe7) 72. Kc2 Kc7 {[%emt 0:00:30] Weighted Error Value: White=0.40/Black=0.46} 1-0

[Event "16th Serbian-ch Women 2022"]
[Site "Bajina Basta"]
[Date "2022.12.07"]
[Round "2.4"]
[White "Drljevic, Ljilja"]
[Black "Dimitrijevic, Andjela"]
[Result "1/2-1/2"]
[ECO "D00"]
[WhiteElo "2175"]
[BlackElo "1993"]
[Annotator "TA"]
[PlyCount "120"]
[EventDate "2022.12.06"]
[EventType "tourn"]
[EventCountry "SRB"]
[SourceTitle "playchess.com"]
[Source "ChessBase"]
[SourceQuality "1"]
[TimeControl "40/5400+30:1800+30"]

{[%evp 9,120,-36,11,-5,4,0,14,5,20,18,22,-15,50,38,46,13,51,39,74,55,80,93,106,114,138,85,168,51,48,49,68,40,54,44,58,-42,56,-19,-27,-150,-39,-42,-11,-116,-153,-391,-248,-251,-240,-434,-310,-319,0,-242,-227,-217,-206,-227,-213,-198,-190,-180,-135,-138,-133,-358,0,0,12,24,9,-325,-307,-300,-298,-344,-333,-369,-361,-379,-375,-377,-372,-379,-379,-379,-379,-361,-321,-345,-241,-380,-376,-335,-75,-320,0,0,0,0,0,0,0,0,0,0,0,0,0,0,0,0,0]} 1. d4 {[%emt 0:00:02]} d5 {[%emt 0:02:01]} 2. Bg5 {[%emt 0:02:28]} h6 {[%emt 0:06:21]} 3. Bh4 {[%emt 0:01:56]} Nd7 {[%emt 0:06:56]} 4. e3 {[%emt 0:04:37]} Ngf6 {[%emt 0:02:48]} 5. Bd3 {[%emt 0:04:42]} e6 {[%emt 0:06:24]} (5... e5 $15) 6. Nd2 {[%emt 0:06:19] D00: 1 d4 d5: Unusual lines.} Be7 {[%emt 0:02:33]} 7. f4 {[%emt 0:03:34]} c5 {[%emt 0:03:06]} 8. c3 $1 {[%emt 0:00:17]} Qb6 {[%emt 0:14:54]} 9. Rb1 {[%emt 0:07:04]} O-O {[%emt 0:12:06] [#]} 10. Nh3 $146 {[%emt 0:01:12]} ({Predecessor:} 10. Ngf3 Re8 11. O-O a5 12. Ne5 a4 13. a3 Nf8 14. Bxf6 Bxf6 15. Qh5 Re7 16. Rf3 cxd4 17. exd4 {½-½ (49) Van Renswoude,J (2034)-Brouwer,R Bussum 2012}) 10... cxd4 {[%emt 0:03:08]} (10... Qd8 $11) 11. exd4 $14 {[%emt 0:06:57]} Re8 {[%emt 0:02:03]} 12. Bf2 {[%emt 0:09:59]} a5 {[%emt 0:03:29]} 13. O-O {[%emt 0:04:19]} Qc6 {[%emt 0:03:05]} 14. Qe2 {[%emt 0:01:12] Inhibits b5.} b6 {[%emt 0:02:52]} 15. g4 {[%emt 0:06:22]} Bb7 {[%emt 0:03:30]} 16. g5 {[%emt 0:06:43]} Ne4 {[%emt 0:00:34]} 17. Be3 {[%emt 0:00:42]} (17. Bb5 $142 Qd6 18. gxh6) 17... hxg5 {[%emt 0:05:07]} (17... g6 $16 {is a better defense.}) 18. fxg5 {[%emt 0:06:45]} (18. Bb5 Qc7 $16) ({Better is} 18. Nxe4 $18 dxe4 19. Bb5) 18... e5 $1 {[%emt 0:01:10]} 19. Nxe4 {[%emt 0:06:19]} (19. Qh5 g6 20. Qg4 Nd6 $11) (19. Bb5 {looks sharper.} Qe6 20. Nxe4 dxe4 21. Qh5) 19... dxe4 {[%emt 0:03:18]} 20. Bc4 {[%emt 0:04:33]} (20. Bb5 $5 {[%cal Rb5c6]} Qe6 21. Qh5 $11) 20... Rf8 {[%emt 0:01:00]} 21. b3 {[%emt 0:07:15] Qh5 is the strong threat.} (21. Bb5 {is interesting.} Qe6 22. Qh5 Ba6 23. Bxa6 Rxa6 24. a4) 21... Qg6 {[%emt 0:03:07] Against Qh5} 22. Nf2 {[%emt 0:04:08]} (22. a4 $14) 22... Kh8 {[%emt 0:06:43]} ({Black should try} 22... Bxg5 $15 23. Qg4 b5 24. Qxg5 (24. Bxg5 $2 bxc4 25. Qxd7 Qxg5+ 26. Qg4 Qxg4+ 27. Nxg4 cxb3 $17) 24... Qxg5+ 25. Bxg5 bxc4 26. bxc4 Ba6 27. Nxe4 Bxc4) 23. h4 {[%emt 0:01:27]} (23. Qg4 $14 exd4 24. Qh3+ (24. Qxd7 $2 dxe3 25. Qxe7 exf2+ 26. Kxf2 e3+ 27. Qxe3 Qc2+ 28. Be2 Rae8 $19) (24. cxd4 f5 $14) 24... Kg8 25. cxd4 (25. Qxd7 dxe3 26. Qxe7 exf2+ 27. Rxf2 b5 $17)) 23... f5 $11 {[%emt 0:01:12]} 24. h5 {[%emt 0:02:53]} (24. Nh3 $1 $11) 24... Qe8 {[%emt 0:03:54]} (24... Qd6 $17 25. Nh3 f4 26. dxe5 Nxe5 27. Bxf4 (27. Rxf4 $2 Nf3+ 28. Kh1 Rxf4 $19) 27... Qc5+ 28. Be3 Nf3+ 29. Rxf3 exf3 30. Bxc5 Bxc5+ 31. Qf2 Bxf2+ 32. Kxf2 Rad8) 25. Nh3 $1 $15 {[%emt 0:00:25]} f4 {[%emt 0:01:01]} (25... Rc8 $5 {[%cal Rf5f4]} 26. dxe5 Nxe5 $15) 26. Bxf4 {[%emt 0:00:44]} exf4 $17 {[%emt 0:00:33]} (26... Rxf4 {keeps more tension.} 27. Nxf4 exf4 28. Rxf4 Bxg5 29. Rf5 e3) 27. Rxf4 {[%emt 0:00:32]} (27. Nxf4 $17 Rxf4 28. Rxf4 Bxg5 29. Rf7) 27... Bd6 {[%emt 0:00:29]} 28. Rxf8+ {[%emt 0:00:22]} Nxf8 {[%emt 0:00:28]} (28... Qxf8 29. Rf1 Qe8 30. g6 $14) 29. Rf1 $2 {[%emt 0:00:28] Inhibits b5.} (29. g6 {keeps fighting.} Qe7 30. Rf1) 29... Qd7 {[%emt 0:00:35]} 30. Nf2 {[%emt 0:01:14][%cal Oh5h6]} Qe8 $2 {[%emt 0:00:30]} (30... b5 $19 31. Bxb5 Qf5) 31. Re1 $2 {[%emt 0:00:00]} (31. Nh3 $1 $11) 31... e3 {[%emt 0:00:31]} 32. Qxe3 {[%emt 0:00:26]} Qxh5 $40 {[%emt 0:00:23][%mdl 128] Black is out for blood.} 33. Qh3 {[%emt 0:00:29] Against ?nota?} Qxh3 {[%emt 0:00:32]} 34. Nxh3 {[%emt 0:00:02]} Bc6 {[%emt 0:00:32] Prevents g6.} 35. Bf7 {[%emt 0:00:55]} Ra7 {[%emt 0:00:29]} 36. g6 {[%emt 0:00:32]} Re7 {[%emt 0:00:33]} 37. Rf1 {[%emt 0:00:33]} (37. Rxe7 $17 {is the only way for White.} Bxe7 38. Kf2) 37... Be8 $2 {[%emt 0:00:29]} (37... Re3 $19 38. d5 Bxd5 39. Bxd5 Rxh3) 38. Ng5 $11 {[%emt 0:00:10]} Bc7 {[%emt 0:00:32]} (38... Nxg6 39. Bxe8 Rxe8 40. Nf7+ Kg8 41. Nxd6 $18) 39. Kf2 {[%emt 0:00:47] Intending Rh1+ and mate.} Bxf7 $1 {[%emt 0:00:28]} (39... Nxg6 $2 {gets mated.} 40. Rh1+) (39... Bc6 $2 40. d5 Rxf7+ 41. Nxf7+ Kg8 42. dxc6 $18) 40. Nxf7+ {[%emt 0:00:33][%mdl 8192]} (40. Rh1+ $11 {and White stays safe.} Kg8 41. gxf7+ Rxf7+ 42. Nxf7 Kxf7 43. Kf3) 40... Kg8 $19 {[%emt 0:00:20]} 41. Rg1 {[%emt 0:04:30] [#]} Nxg6 $1 {[%emt 0:10:55][%mdl 512]} 42. Rxg6 {[%emt 0:00:31] And now Ng5 would win.} (42. Nh6+ Kh7) 42... Rxf7+ {[%emt 0:02:15][%mdl 4096] Endgame KRB-KR} (42... Kxf7 $2 {is the wrong capture.} 43. Rc6 $19) 43. Ke3 {[%emt 0:00:49]} Rf6 {[%emt 0:00:36]} 44. Rg1 {[%emt 0:00:07]} Kf7 {[%emt 0:02:07]} 45. Ke4 {[%emt 0:02:30]} Bf4 {[%emt 0:04:57]} 46. c4 {[%emt 0:06:40]} g5 {[%emt 0:01:52] aiming for ...Kg6.} 47. a3 {[%emt 0:00:31]} Ke6 {[%emt 0:04:01]} 48. b4 {[%emt 0:01:56]} axb4 {[%emt 0:08:01]} 49. axb4 {[%emt 0:00:04]} Bd2 {[%emt 0:00:00] Strongly threatening ...Rf4+.} 50. c5 {[%emt 0:08:36]} (50. Rg2 $142 Bf4 51. c5) 50... bxc5 {[%emt 0:00:00]} ({Weaker is} 50... Bxb4 51. Rxg5 bxc5 52. dxc5 $11) 51. bxc5 {[%emt 0:00:48] [#]} Rf5 {[%emt 0:00:51] Inhibits d5+.} (51... Rf4+ $1 $19 52. Kd3 Rf2) 52. Kd3 $2 {[%emt 0:06:11]} (52. Ra1 $17 {was the only chance.} Rf4+ 53. Kd3) 52... Kd5 $2 {[%emt 0:00:37]} 53. Kxd2 $11 {[%emt 0:00:29] Threatens to win with Kc3. The position is equal.} Kxd4 {[%emt 0:00:18] KR-KR} 54. c6 {[%emt 0:00:21]} Rf2+ {[%emt 0:00:31]} 55. Kd1 {[%emt 0:01:45]} Rf6 {[%emt 0:00:35]} 56. Rg4+ {[%emt 0:00:23]} Kc5 {[%emt 0:00:33]} 57. c7 {[%emt 0:00:35]} Rc6 {[%emt 0:00:26]} 58. Rxg5+ {[%emt 0:00:24]} Kb6 {[%emt 0:00:13]} 59. Rg6 {[%emt 0:00:09]} Kxc7 {[%emt 0:00:14][%mdl 64]} 60. Rxc6+ {[%emt 0:00:03]} Kxc6 {[%emt 0:00:05] And White is the lucky defender.   Weighted Error Value: White=0.50/Black=0.51} 1/2-1/2

[Event "16th Serbian-ch Women 2022"]
[Site "Bajina Basta"]
[Date "2022.12.07"]
[Round "2.5"]
[White "Srdanovic, Jovana"]
[Black "Grozdanovic, Anastasia"]
[Result "0-1"]
[ECO "D43"]
[WhiteElo "2189"]
[BlackElo "1870"]
[Annotator "TA"]
[PlyCount "56"]
[EventDate "2022.12.06"]
[EventType "tourn"]
[EventCountry "SRB"]
[SourceTitle "playchess.com"]
[Source "ChessBase"]
[SourceQuality "1"]
[TimeControl "40/5400+30:1800+30"]

{[%evp 15,56,-22,-8,-91,-94,-92,0,-4,-5,-5,0,-8,0,-40,-24,-30,-39,-135,125,-17,6,-25,-59,-191,-191,-733,-713,-761,-745,-742,-787,-759,-729,-722,-706,-820,-812,-818,-804,-800,-794,-737,-692]} 1. d4 {[%emt 0:00:04]} d5 {[%emt 0:00:11]} 2. c4 {[%emt 0:00:08]} c6 {[%emt 0:00:07]} 3. Nc3 {[%emt 0:00:11]} Nf6 {[%emt 0:00:16]} 4. Nf3 {[%emt 0:00:11]} e6 {[%emt 0:00:07]} 5. Bg5 {[%emt 0:00:23]} h6 {[%emt 0:00:06]} 6. Bh4 {[%emt 0:00:19]} dxc4 {[%emt 0:00:14]} 7. a4 {[%emt 0:19:04]} Bb4 {[%emt 0:00:26]} 8. Bxf6 {[%emt 0:08:23]} Qxf6 {[%emt 0:01:49]} 9. e4 {[%emt 0:07:17] D43: Semi-Slav: 5 Bg5 h6.} (9. e3 $11) 9... b5 $17 {[%emt 0:02:31] Black is more active.} 10. Be2 {[%emt 0:08:20]} Bxc3+ {[%emt 0:10:18]} ({Black should play} 10... a6 $17 {Black wants to play ...Bb7.} 11. O-O Bb7) 11. bxc3 $11 {[%emt 0:00:04] The position is equal.} Nd7 {[%emt 0:00:44]} 12. O-O {[%emt 0:06:56] [#]} a6 $146 {[%emt 0:04:20]} ({Predecessor:} 12... Qf4 13. Qc2 Nf6 14. e5 Qe4 15. Qb2 Nd5 16. Rfe1 Nf4 17. Bf1 Qg6 18. g3 h5 {1-0 (58) Dos Santos,G (1734)-Born,A (1365) Porto Alegre 2018}) 13. Nd2 {[%emt 0:14:44]} Bb7 {[%emt 0:17:28]} 14. Qb1 {[%emt 0:05:33]} (14. e5 $5 {[%cal Re5f6]} Qe7 15. Ne4 $11) 14... Rb8 {[%emt 0:03:40]} 15. e5 {[%emt 0:01:14]} Qd8 {[%emt 0:03:14]} 16. f4 {[%emt 0:05:28]} (16. Ne4 $15 O-O 17. axb5 (17. Nd6 c5 $17) 17... cxb5 18. Nd6) 16... Nc5 $2 {[%emt 0:07:02][%mdl 8192] [#]} 17. Qc2 {[%emt 0:04:21]} ({White should try} 17. Nxc4 $1 $16 {[%mdl 512]} bxc4 18. dxc5) 17... Nxa4 {[%emt 0:06:36]} 18. Ne4 {[%emt 0:04:02] Black must now prevent Nd6+.} O-O {[%emt 0:03:04][%cal Oc6c5] And now ...c5! would win.} 19. f5 {[%emt 0:05:43] [#] Prevents c5. Now White is beyond hope.} (19. Rxa4 $1 $15 bxa4 20. Nc5) 19... c5 $1 $19 {[%emt 0:07:14]} 20. f6 $2 {[%emt 0:02:40]} (20. Nd6 Qg5 21. Nxb7 Rxb7 22. fxe6 Qe3+ 23. Kh1 Nxc3 24. Bg4) 20... Bxe4 {[%emt 0:01:42] Black is clearly winning.} (20... cxd4 21. fxg7 Kxg7 22. Rf6 Nxc3 23. Nxc3 $17) 21. Qxe4 {[%emt 0:00:07]} Nxc3 {[%emt 0:00:22]} 22. Qf3 {[%emt 0:00:40]} Qxd4+ {[%emt 0:00:35]} 23. Kh1 {[%emt 0:00:41]} Qxe5 {[%emt 0:04:15]} 24. fxg7 {[%emt 0:01:05]} Qxg7 {[%emt 0:00:23]} (24... Qxe2 $2 25. gxf8=Q+ (25. gxf8=N Qxf3 26. Rxf3 Ne4 $17) 25... Rxf8 26. Qxc3 $18) ({Weaker is} 24... Nxe2 25. gxf8=N Rxf8 26. Qg4+ Kh8 27. Rae1 $14) 25. Rac1 {[%emt 0:03:58]} Nxe2 {[%emt 0:00:16]} 26. Qxe2 {[%emt 0:00:02]} Rbd8 {[%emt 0:00:44]} 27. Rf4 {[%emt 0:00:52]} Rd4 {[%emt 0:00:54]} 28. Rf3 {[%emt 0:00:50]} Rg4 {[%emt 0:01:31] Weighted Error Value: White=0.62/Black=0.29 (precise)} 0-1